bitfinex/quotes_ETHUSD_20240926
["timestamp","ask_amount","ask_price","bid_price","bid_amount"]
[1727311717736,4.44211,2569.3,2569.2,0.0614832]
[1727311717737,8.27491,2569.3,2569.2,0.0614832]
[1727311719432,7.44211,2569.3,2569.2,0.0614832]
[1727311720295,8.57552,2569.3,2569.2,0.0614832]
[1727311720489,3.89199,2569.4,2569.2,0.0614832]
[1727311720905,3.89199,2569.4,2569.3,0.06215866]
[1727311721301,3.89199,2569.4,2569.2,0.0614832]
[1727311721533,3.89199,2569.4,2569.3,0.06215866]
[1727311721534,3.89195,2569.4,2569.3,0.06215866]
[1727311721884,3.89211,2569.3,2569.2,0.0614832]
[1727311722089,5.22071,2569.3,2569.2,0.0614832]
[1727311722285,9.7624255,2569.3,2569.2,0.0614832]
[1727311722531,15.32117555,2569.3,2569.2,0.0614832]
[1727311722837,10.22071,2569.3,2569.2,0.0614832]
[1727311723038,16.251528,2569.3,2569.2,0.0614832]
[1727311723325,12.67060636,2569.3,2569.2,0.0614832]
[1727311723543,16.251528,2569.3,2569.2,0.0614832]
[1727311723883,12.11179998,2569.3,2569.2,0.0614832]
[1727311724103,16.65351548,2569.3,2569.2,0.0614832]
[1727311724632,17.21226553,2569.3,2569.2,0.0614832]
[1727311724932,10.67055003,2569.3,2569.2,0.0614832]
[1727311725102,9.7098125,2569.3,2569.2,0.0614832]
[1727311727312,16.251528,2569.3,2569.2,0.0614832]
[1727311727627,16.65352194,2569.3,2569.2,0.0614832]
[1727311727832,12.11180644,2569.3,2569.2,0.0614832]
[1727311728065,16.81027805,2569.3,2569.2,0.0614832]
[1727311728219,16.65352851,2569.3,2569.2,0.0614832]
[1727311728420,10.11181301,2569.3,2569.2,0.0614832]
[1727311729264,10.11181301,2569.3,2568.7,0.8]
[1727311729265,3.55,2569.2,2568.7,0.8]
[1727311729561,0.55,2568.8,2568.7,0.8]
[1727311729922,0.55,2568.8,2568.1,0.8]
[1727311730124,3.89326,2568.6,2568.1,0.8]
[1727311730558,3.89357,2568.4,2568.1,0.8]
[1727311731166,3.89357,2568.4,2568.2,0.06258235]
[1727311731368,4.44362,2568.3,2568.2,0.06258235]
[1727311731703,4.44392,2568.1,2568.0,0.0614832]
[1727311732121,4.44392,2568.1,2568.0,0.12264687]
[1727311732321,8.19962,2568.1,2568.0,0.12264687]
[1727311732535,8.19962,2568.1,2566.7,0.0664832]
[1727311732536,3.8959,2566.8,2566.7,0.0664832]
[1727311732772,3.89456,2567.7,2566.7,0.0664832]
[1727311732773,3.89549,2567.1,2566.8,0.7999]
[1727311732977,3.89488,2567.5,2566.8,0.7999]
[1727311733177,0.1307,2567.6,2566.8,0.7999]
[1727311733466,0.1307,2567.6,2566.9,0.05768469]
[1727311733467,0.55,2567.2,2566.9,0.05768469]
[1727311733770,0.55,2567.2,2566.7,0.8663832]
[1727311733771,0.55,2567.0,2566.7,0.0664832]
[1727311734064,0.55,2567.0,2566.8,0.05768469]
[1727311734448,4.44567,2567.0,2566.7,0.0664832]
[1727311734633,0.55,2567.0,2566.9,0.05768469]
[1727311734840,0.55,2567.0,2566.7,0.0664832]
[1727311735228,0.55,2566.9,2566.8,0.05768469]
[1727311735423,4.44574,2566.9,2566.8,0.05768469]
[1727311735669,4.44574,2566.9,2566.7,0.0664832]
[1727311735907,3.8959,2566.8,2566.7,0.0664832]
[1727311736407,3.8959,2566.8,2566.7,0.12416789]
[1727311736813,0.55,2566.8,2566.7,0.12416789]
[1727311737200,4.4459,2566.8,2566.7,0.12416789]
[1727311737397,4.4459,2566.8,2566.7,0.0664832]
[1727311738571,5.360124,2566.8,2566.7,0.12416789]
[1727311738915,4.4459,2566.8,2566.7,0.12416789]
[1727311739080,4.4459,2566.8,2566.7,0.0664832]
[1727311740926,7.4459,2566.8,2566.7,0.0664832]
[1727311741433,7.4459,2566.8,2565.7,0.7884]
[1727311741434,3.55,2565.9,2565.4,0.0614832]
[1727311741590,3.8975,2565.8,2565.4,0.0614832]
[1727311741925,3.89769,2565.7,2565.5,0.05351423]
[1727311742138,8.34469,2565.9,2565.5,0.05351423]
[1727311742422,0.55,2565.6,2565.5,0.05351423]
[1727311742632,4.44772,2565.6,2565.5,0.05351423]
[1727311743151,7.44772,2565.6,2565.5,0.0173808]
[1727311744343,4.7238335,2565.9,2565.6,0.8026]
[1727311744344,3.89736,2565.9,2565.6,0.8026]
[1727311744653,1.134164,2566.7,2565.9,3.89726]
[1727311744654,3.89613,2566.7,2565.9,3.89726]
[1727311744805,0.753,2566.9,2566.2,4.69939]
[1727311744806,3.89581,2566.9,2566.2,4.69939]
[1727311745011,3.89581,2566.9,2566.3,0.05602061]
[1727311745220,3.89607,2566.7,2566.3,0.05602061]
[1727311745546,3.89607,2566.7,2566.2,0.8026]
[1727311745702,7.79223,2566.7,2566.4,0.05602061]
[1727311745905,3.89607,2566.7,2566.4,0.05602061]
[1727311746103,3.89607,2566.7,2566.3,0.0173808]
[1727311746104,3.89636,2566.5,2566.3,0.0173808]
[1727311746399,7.79168,2566.9,2566.4,0.05507033]
[1727311746605,3.89576,2566.9,2566.4,3.95151033]
[1727311746815,3.89551,2567.1,2566.4,3.95151033]
[1727311746816,3.89551,2567.1,2566.4,4.81833044]
[1727311747015,3.89561,2567.0,2566.4,4.81833044]
[1727311747242,3.8958,2566.9,2566.4,0.92189044]
[1727311747404,3.89551,2567.1,2566.4,4.81834044]
[1727311747603,7.79108,2567.1,2566.4,4.81834044]
[1727311747808,0.7961,2567.6,2566.6,0.8096]
[1727311747809,3.89479,2567.6,2566.6,0.8096]
[1727311748003,3.89409,2568.0,2566.7,0.05467868]
[1727311748247,3.89409,2568.0,2567.0,0.8142]
[1727311748248,3.89495,2567.5,2567.0,0.8142]
[1727311748430,3.89514,2567.3,2567.0,0.8142]
[1727311748612,3.89578,2566.9,2566.7,0.86887868]
[1727311748821,3.89578,2566.9,2566.7,0.8142]
[1727311749025,3.8952,2567.3,2566.8,0.05222792]
[1727311749352,3.8952,2567.3,2566.7,0.8142]
[1727311749688,0.7549,2567.8,2566.7,0.8142]
[1727311749689,3.0,2567.7,2566.7,1.28524]
[1727311749850,3.8959,2566.8,2566.7,0.8142]
[1727311750150,3.89569,2567.0,2566.7,0.8142]
[1727311750347,3.89549,2567.1,2566.7,0.8142]
[1727311751010,3.89564,2567.0,2566.7,0.8142]
[1727311751359,3.89548,2567.1,2566.7,0.8142]
[1727311751560,7.79074,2567.2,2566.7,0.8142]
[1727311751797,3.89533,2567.2,2566.7,0.8142]
[1727311751955,7.79075,2567.2,2566.7,0.8142]
[1727311752161,3.89533,2567.2,2566.7,1.285243]
[1727311752411,4.64933,2567.8,2566.7,1.285243]
[1727311752412,3.89456,2567.7,2566.9,3.89562]
[1727311752564,3.89449,2567.8,2567.2,3.8952]
[1727311752871,3.89405,2568.1,2567.2,3.8952]
[1727311752872,3.89405,2568.1,2567.6,3.89463]
[1727311753074,3.89403,2568.1,2567.5,0.7616]
[1727311753262,3.89411,2568.0,2567.5,0.7616]
[1727311753604,0.778683,2568.4,2567.5,0.7616]
[1727311753605,3.89435,2567.9,2567.5,1.22725]
[1727311753758,3.89435,2567.9,2567.5,0.7616]
[1727311753963,7.78803,2568.1,2567.5,0.7616]
[1727311754159,3.89431,2567.9,2567.5,0.7616]
[1727311754374,7.78866,2567.9,2567.5,0.7616]
[1727311754787,3.89453,2567.7,2567.5,0.7616]
[1727311755208,3.89431,2567.9,2567.5,0.7616]
[1727311755209,3.89425,2567.9,2567.5,0.7616]
[1727311755715,3.89454,2567.7,2567.5,0.7616]
[1727311755880,3.89593,2566.8,2566.4,0.7565]
[1727311756082,3.89613,2566.7,2566.4,0.7565]
[1727311756326,3.89613,2566.7,2566.5,0.04904958]
[1727311756620,3.8962,2566.6,2566.5,0.04904958]
[1727311756975,4.285523,2566.8,2566.5,0.04904958]
[1727311757177,3.89563,2567.0,2566.6,0.7565]
[1727311757372,3.89593,2566.8,2566.7,0.04731061]
[1727311758587,7.44593,2566.8,2566.7,0.04731061]
[1727311758828,7.44593,2566.8,2566.3,0.0173808]
[1727311758829,3.8965,2566.4,2566.3,0.0173808]
[1727311758993,7.4465,2566.4,2566.3,0.0173808]
[1727311759323,8.2015,2566.4,2566.3,0.0173808]
[1727311759728,6.8965,2566.4,2566.3,0.0173808]
[1727311759890,8.525785,2566.4,2566.3,0.0173808]
[1727311760614,7.975785,2566.4,2566.3,0.0173808]
[1727311760979,3.8965,2566.4,2566.3,0.0173808]
[1727311761312,3.89635,2566.5,2566.3,0.8252808]
[1727311761732,3.89635,2566.5,2566.4,0.04496894]
[1727311762086,3.8965,2566.4,2566.3,0.8252808]
[1727311762628,3.8965,2566.4,2566.3,0.87168762]
[1727311763183,4.675785,2566.4,2566.3,0.06378762]
[1727311763587,4.675785,2566.4,2566.3,0.0173808]
[1727311765036,8.225785,2566.4,2566.3,0.0173808]
[1727311765525,11.5285545,2566.4,2566.3,0.0173808]
[1727311765738,11.93014964,2566.4,2566.3,0.0173808]
[1727311766592,11.93014964,2566.4,2564.7,0.8257]
[1727311766593,3.89863,2565.0,2564.7,0.8257]
[1727311768029,3.89849,2565.1,2564.7,0.8257]
[1727311768235,3.89742,2565.8,2565.2,0.7559]
[1727311768402,3.89723,2566.0,2565.2,4.65409]
[1727311768726,3.89723,2566.0,2563.0,10.27487814]
[1727311768727,3.89744,2565.8,2563.0,10.27487814]
[1727311768899,3.89723,2566.0,2565.3,3.94291493]
[1727311769109,3.89663,2566.4,2565.7,3.89756]
[1727311769291,3.89628,2566.6,2565.4,0.04485493]
[1727311769292,3.89728,2565.9,2565.4,0.04485493]
[1727311769517,3.89735,2565.9,2565.1,3.89839]
[1727311769757,3.89748,2565.8,2565.5,0.04485493]
[1727311769964,7.79501,2565.8,2565.1,3.89847]
[1727311770131,7.79501,2565.8,2565.6,0.04485493]
[1727311770132,3.89748,2565.8,2565.6,0.04485493]
[1727311770452,3.89748,2565.8,2565.1,3.89847]
[1727311770453,3.89759,2565.7,2565.1,3.89847]
[1727311770759,3.89773,2565.6,2565.1,0.779718]
[1727311771114,3.0,2565.6,2564.5,3.8993]
[1727311771320,3.89812,2565.4,2564.7,3.89908]
[1727311771566,3.89836,2565.2,2564.5,3.8993]
[1727311771852,3.89836,2565.2,2563.9,8.9751514]
[1727311771853,3.89836,2565.2,2564.7,0.774]
[1727311772060,3.7829,2565.8,2564.7,0.774]
[1727311772218,3.89859,2565.1,2564.7,0.774]
[1727311772663,3.89893,2564.8,2564.7,0.774]
[1727311772818,3.89859,2565.1,2564.5,3.89938]
[1727311773020,3.89859,2565.1,2564.7,0.7818]
[1727311774040,3.89827,2565.3,2564.7,0.7818]
[1727311775064,3.89827,2565.3,2564.7,4.68088]
[1727311775229,7.68036,2565.8,2564.7,0.7818]
[1727311775230,5.0749314,2565.6,2564.7,0.7818]
[1727311775434,5.0749314,2565.6,2562.8,5.22706133]
[1727311775435,3.7868,2565.4,2563.9,4.7201]
[1727311775624,3.89863,2565.0,2564.4,0.7532]
[1727311775821,7.79736,2565.0,2564.4,0.7532]
[1727311776061,3.8984,2565.2,2564.5,0.04368275]
[1727311776266,3.8984,2565.2,2564.5,3.94303275]
[1727311776425,0.50749314,2565.5,2564.5,0.04368275]
[1727311776626,3.89863,2565.0,2564.5,0.04368275]
[1727311776822,4.65842,2565.7,2564.5,0.04368275]
[1727311777043,3.89811,2565.4,2564.7,4.70189]
[1727311777345,0.811,2566.1,2564.9,0.8029]
[1727311777346,3.89842,2565.2,2564.9,0.8029]
[1727311777644,3.89863,2565.0,2564.9,0.8029]
[1727311777845,7.79707,2565.1,2564.9,0.84658275]
[1727311778044,3.89849,2565.1,2564.9,0.84658275]
[1727311778253,3.89849,2565.1,2564.9,0.8029]
[1727311778559,7.79658,2565.3,2565.0,0.04441711]
[1727311778756,3.89827,2565.3,2565.0,0.04441711]
[1727311779162,3.0,2566.0,2565.0,0.04441711]
[1727311779401,3.89802,2565.5,2565.0,0.04441711]
[1727311779543,3.89774,2565.6,2565.1,0.7924]
[1727311779739,3.89752,2565.8,2565.1,4.69083]
[1727311780134,3.89752,2565.8,2565.2,0.04416248]
[1727311780651,0.786,2566.4,2565.4,0.7997]
[1727311780652,3.89713,2566.0,2565.4,0.7997]
[1727311780856,3.89713,2566.0,2565.5,0.04401557]
[1727311780857,7.79435,2566.0,2565.5,0.04401557]
[1727311781046,3.89713,2566.0,2565.5,0.04401557]
[1727311781250,4.286883,2566.0,2565.5,0.04401557]
[1727311781538,3.89772,2565.6,2565.5,0.04401557]
[1727311781980,3.89736,2565.9,2565.5,0.04401557]
[1727311782283,0.7755,2566.5,2565.6,0.7997]
[1727311782284,3.89705,2566.1,2565.6,0.7997]
[1727311782439,3.89705,2566.1,2565.7,0.04401557]
[1727311783943,3.89741,2565.8,2565.7,0.04401557]
[1727311784944,3.89757,2565.7,2565.6,0.7997]
[1727311785140,3.89757,2565.7,2564.8,3.89885]
[1727311785141,3.89781,2565.6,2564.9,4.69305]
[1727311785440,3.89757,2565.7,2564.9,4.69305]
[1727311785441,3.89795,2565.5,2564.9,0.7943]
[1727311785646,3.89795,2565.5,2565.0,0.85919]
[1727311786286,3.89764,2565.7,2565.2,0.8308]
[1727311786641,7.79531,2565.7,2565.2,0.8308]
[1727311786980,7.79533,2565.7,2565.2,0.8308]
[1727311787190,3.89734,2565.9,2565.2,1.303733]
[1727311787358,3.89704,2566.1,2565.2,5.201973]
[1727311787561,3.89716,2566.0,2565.4,4.67951]
[1727311788159,3.89659,2566.4,2565.7,3.89748]
[1727311788388,3.89659,2566.4,2565.8,0.7815]
[1727311788681,3.89626,2566.6,2566.1,0.7815]
[1727311788881,3.89566,2567.0,2566.1,0.7815]
[1727311789079,3.89643,2566.5,2566.1,0.7815]
[1727311789846,3.89668,2566.3,2566.1,0.7815]
[1727311790049,3.89643,2566.5,2566.1,0.7815]
[1727311790760,7.79289,2566.5,2566.1,0.7815]
[1727311790966,0.389566,2566.9,2566.2,0.07793718]
[1727311791164,0.8023,2567.4,2566.3,0.8135]
[1727311791375,3.896,2566.8,2566.3,0.8553033]
[1727311791560,7.792,2566.8,2566.3,0.8553033]
[1727311791773,3.896,2566.8,2566.3,0.8553033]
[1727311791977,3.89605,2566.7,2566.3,0.8553033]
[1727311792377,3.8962,2566.6,2566.3,0.8553033]
[1727311792550,4.365089,2567.2,2566.3,0.8553033]
[1727311792551,3.89647,2566.5,2566.3,0.8553033]
[1727311792952,3.89645,2566.5,2566.3,0.8553033]
[1727311793209,3.8965,2566.4,2566.3,0.8135]
[1727311793506,3.89689,2566.2,2565.7,0.7629]
[1727311794393,3.89658,2566.4,2565.8,3.89739]
[1727311794567,3.89658,2566.4,2565.9,0.8317]
[1727311795382,3.89667,2566.3,2565.9,0.8317]
[1727311795678,3.89658,2566.4,2565.9,0.8317]
[1727311796095,3.89624,2566.6,2566.0,3.8971]
[1727311796290,3.89596,2566.8,2566.1,0.8129]
[1727311796682,3.89607,2566.7,2566.1,4.70984]
[1727311797094,3.89596,2566.8,2566.1,3.89694]
[1727311797410,3.89596,2566.8,2566.2,0.7501]
[1727311797701,3.89615,2566.7,2566.2,0.7501]
[1727311797901,4.365079,2567.2,2566.2,0.7501]
[1727311797902,3.89661,2566.4,2566.2,0.7501]
[1727311798072,3.89666,2566.3,2566.2,0.7501]
[1727311798274,3.89661,2566.4,2566.2,0.7501]
[1727311798671,3.89623,2566.6,2566.2,0.7501]
[1727311799000,3.89639,2566.5,2566.2,0.7501]
[1727311799236,4.285853,2566.6,2566.2,0.7501]
[1727311799387,3.89639,2566.5,2566.2,0.7501]
[1727311799915,3.89623,2566.6,2566.2,0.7501]
[1727311800268,3.89572,2567.0,2566.2,0.82803424]
[1727311800269,3.89569,2567.0,2566.2,0.82803424]
[1727311800575,0.8260819,2567.0,2566.3,0.7655]
[1727311800799,3.89591,2566.8,2566.3,0.7655]
[1727311800984,7.7919,2566.8,2566.3,0.7655]
[1727311801413,4.71955,2567.4,2566.3,0.7655]
[1727311801414,3.8961,2566.7,2566.3,0.7655]
[1727311801988,3.89624,2566.6,2566.3,0.7655]
[1727311802192,3.8961,2566.7,2566.3,0.7655]
[1727311802588,3.89614,2566.7,2566.3,0.7655]
[1727311802808,3.89592,2566.8,2566.3,0.7655]
[1727311803237,3.89542,2567.2,2566.5,0.8258]
[1727311803451,3.89542,2567.2,2566.5,4.72205]
[1727311803651,3.89542,2567.2,2566.7,3.89593]
[1727311803652,0.0323008,2567.2,2566.7,3.89593]
[1727311803819,0.0323008,2567.2,2566.8,0.8258]
[1727311804148,3.89552,2567.1,2566.8,0.8258]
[1727311804324,3.9276008,2567.2,2566.8,0.8258]
[1727311804526,3.89552,2567.1,2566.8,0.8258]
[1727311804737,3.9276008,2567.2,2566.8,0.8258]
[1727311805137,0.0323008,2567.2,2566.8,0.8258]
[1727311805353,0.0323008,2567.2,2566.2,0.8261]
[1727311805508,3.89615,2566.7,2566.2,0.8261]
[1727311805704,3.89564,2567.0,2566.3,0.04090326]
[1727311806023,3.89564,2567.0,2566.4,3.8965]
[1727311806024,7.79133,2567.0,2566.4,3.8965]
[1727311806243,3.9276908,2567.2,2566.5,0.7746]
[1727311806422,3.9276908,2567.2,2566.5,0.81531744]
[1727311806423,3.89591,2566.8,2566.5,0.81531744]
[1727311806642,3.89614,2566.7,2566.5,0.81531744]
[1727311807603,0.0323008,2566.7,2566.5,0.81531744]
[1727311808019,3.9283708,2566.7,2566.5,0.81531744]
[1727311808423,0.0323008,2566.7,2566.5,0.81531744]
[1727311809211,3.8962,2566.6,2566.5,0.81531744]
[1727311810256,0.0323008,2566.7,2566.5,0.81531744]
[1727311810420,0.0323008,2566.7,2566.5,0.7746]
[1727311810626,0.0323008,2566.7,2566.6,0.11863803]
[1727311810854,0.0323008,2566.7,2566.6,4.81413803]
[1727311811169,0.0599771,2568.0,2566.6,4.81413803]
[1727311811170,0.0599771,2568.0,2566.7,1.1901]
[1727311811329,0.0599771,2568.0,2567.8,0.7993]
[1727311811528,0.0599771,2568.0,2567.8,0.87717773]
[1727311811724,0.0599771,2568.0,2567.9,3.89423]
[1727311811936,0.0599771,2568.0,2567.9,0.83969471]
[1727311812139,0.0599771,2568.0,2567.9,4.73392471]
[1727311812371,0.0599771,2568.0,2567.9,5.6045572]
[1727311812578,0.0599771,2568.0,2567.9,1.7103272]
[1727311812740,0.0599771,2568.0,2567.9,0.83969471]
[1727311814869,3.9540571,2568.0,2567.9,0.83969471]
[1727311815046,3.9540571,2568.0,2567.9,0.04039471]
[1727311815247,0.8699771,2568.0,2567.2,0.8252]
[1727311815566,3.89514,2567.3,2567.2,0.8252]
[1727311815771,3.89529,2567.2,2566.6,0.8332]
[1727311815975,3.89529,2567.2,2566.7,0.60535507]
[1727311816178,3.89514,2567.3,2566.7,4.50125507]
[1727311816677,3.89514,2567.3,2566.7,0.60535507]
[1727311816879,3.89489,2567.5,2566.8,0.8026]
[1727311817086,3.89457,2567.7,2566.9,0.07790285]
[1727311817238,3.89429,2567.9,2567.1,4.698]
[1727311817577,3.89429,2567.9,2567.1,5.64298147]
[1727311817795,3.89429,2567.9,2567.2,0.8026]
[1727311817937,0.0599771,2568.0,2567.4,3.89498]
[1727311818138,0.0599771,2568.0,2567.5,0.801]
[1727311818418,0.0599771,2568.0,2567.5,5.64060157]
[1727311818568,0.0599771,2568.0,2567.5,4.77371497]
[1727311819951,0.0599771,2568.0,2567.5,3.97271497]
[1727311820153,0.0599771,2568.0,2567.8,0.7902]
[1727311821367,0.0599771,2568.0,2567.9,0.03917292]
[1727311821573,0.0599771,2568.0,2567.9,0.51156221]
[1727311821741,0.0599771,2568.0,2567.9,0.03917292]
[1727311822855,3.9540571,2568.0,2567.9,0.03917292]
[1727311823063,0.0599771,2568.0,2567.9,0.03917292]
[1727311823454,0.0599771,2568.0,2567.9,3.93340292]
[1727311823649,0.0599771,2568.0,2567.9,4.80299225]
[1727311824273,0.0599771,2568.0,2567.9,4.88085806]
[1727311824483,0.0599771,2568.0,2567.9,5.71215806]
[1727311824993,0.0599771,2568.0,2567.9,5.63429225]
[1727311825793,0.0599771,2568.0,2567.9,5.71214566]
[1727311826151,0.0599771,2568.0,2567.9,9.26214566]
[1727311826354,0.0599771,2568.0,2567.9,9.18429225]
[1727311826647,0.0599771,2568.0,2567.9,8.63429225]
[1727311826861,0.0599771,2568.0,2567.9,9.18429225]
[1727311827292,0.0599771,2569.2,2568.9,3.89269]
[1727311827450,0.0599771,2569.2,2569.1,0.7884]
[1727311827855,0.0599771,2569.2,2569.1,0.82611668]
[1727311828200,0.0599771,2569.2,2569.1,4.71852668]
[1727311828385,0.0599771,2569.2,2569.1,5.58742926]
[1727311828696,0.0599771,2569.2,2569.1,1.69501926]
[1727311828852,0.0599771,2569.2,2569.1,4.79635913]
[1727311829551,0.0599771,2569.2,2569.1,0.82611668]
[1727311829757,0.0599771,2569.2,2569.1,4.7963571]
[1727311830396,0.0599771,2569.2,2569.1,4.7963572]
[1727311830583,0.0599771,2569.2,2569.1,0.82611668]
[1727311830796,0.0599771,2569.2,2569.1,0.03771668]
[1727311831107,0.0599771,2569.2,2568.8,0.7972]
[1727311831404,0.0599771,2569.2,2568.9,0.03605705]
[1727311832061,0.0599771,2569.2,2568.9,0.08353397]
[1727311832370,0.0599771,2569.2,2569.0,3.89255]
[1727311832575,0.0599771,2569.2,2569.1,3.89241]
[1727311832911,0.0599771,2569.2,2569.1,3.97463573]
[1727311833065,0.0599771,2569.2,2569.1,4.7613543]
[1727311834657,0.0599771,2569.2,2569.1,5.5819543]
[1727311834862,0.0599771,2569.2,2569.1,5.65978081]
[1727311835676,0.0599771,2569.2,2569.1,5.5819543]
[1727311835902,0.0599771,2569.2,2569.1,1.6895443]
[1727311836060,0.0599771,2569.2,2569.1,0.90282573]
[1727311836914,3.9522371,2569.2,2569.1,0.08222573]
[1727311837204,3.89243,2569.1,2568.7,0.7948]
[1727311837409,0.0599771,2569.2,2569.1,0.08197205]
[1727311837410,3.9522371,2569.2,2569.1,0.08197205]
[1727311837575,3.9522371,2569.2,2568.4,0.7948]
[1727311837576,3.89299,2568.8,2568.4,0.7948]
[1727311837779,7.78595,2568.8,2568.4,0.7948]
[1727311837983,3.89296,2568.8,2568.4,0.7948]
[1727311838197,3.89303,2568.7,2568.4,0.7948]
[1727311838504,3.89324,2568.6,2568.4,0.7948]
[1727311838710,3.89282,2568.9,2568.4,0.7948]
[1727311838882,3.89297,2568.8,2568.2,3.89366]
[1727311839076,3.89297,2568.8,2568.3,4.672267]
[1727311839273,0.7878,2568.9,2568.3,0.778747]
[1727311839605,0.7878,2568.9,2568.1,4.68869]
[1727311839606,3.89319,2568.6,2568.1,4.68869]
[1727311840004,7.78645,2568.6,2568.1,0.7948]
[1727311840204,3.89319,2568.6,2568.1,0.7948]
[1727311840504,3.89319,2568.6,2568.1,5.157595]
[1727311840714,3.89356,2568.4,2568.1,0.468895]
[1727311841009,3.89371,2568.3,2567.8,0.7948]
[1727311841302,3.89387,2568.2,2567.8,0.7948]
[1727311841504,3.89423,2567.9,2567.3,0.7948]
[1727311841672,3.89402,2568.1,2567.5,3.89473]
[1727311841876,3.89401,2568.1,2567.5,3.89473]
[1727311842522,3.89424,2567.9,2567.4,4.42906059]
[1727311842673,3.89424,2567.9,2567.4,4.42902059]
[1727311842873,3.89424,2567.9,2567.5,0.52238206]
[1727311843074,0.7878,2568.4,2567.3,0.7948]
[1727311843300,4.68242,2567.7,2567.1,3.89535]
[1727311843507,3.89453,2567.8,2567.1,3.89535]
[1727311843674,3.89462,2567.7,2567.2,0.469015]
[1727311844076,3.89415,2568.0,2567.3,0.7948]
[1727311844307,0.7878,2568.3,2567.4,0.07788433]
[1727311844518,3.89408,2568.0,2567.4,0.61976335]
[1727311844689,3.89402,2568.1,2567.5,3.89483]
[1727311844910,3.8941,2568.0,2567.4,0.61976335]
[1727311845219,3.89402,2568.1,2567.4,0.61976335]
[1727311845420,0.69522971,2569.1,2568.0,3.89396]
[1727311845421,0.7878,2568.7,2568.0,3.89396]
[1727311845736,3.89297,2568.8,2568.2,4.54610585]
[1727311845888,3.89328,2568.6,2568.0,3.89396]
[1727311846088,3.89328,2568.6,2568.1,0.07786454]
[1727311846297,3.89277,2568.9,2568.2,4.54610585]
[1727311846524,3.89277,2568.9,2568.3,0.07786207]
[1727311846525,3.8929,2568.8,2568.3,0.07786207]
[1727311846819,3.89277,2568.9,2568.3,3.97147207]
[1727311846993,3.89277,2568.9,2568.3,5.21259586]
[1727311847198,3.9522471,2569.2,2568.6,3.89316]
[1727311847422,0.0599771,2569.2,2568.7,0.07784977]
[1727311847606,3.89242,2569.1,2568.7,0.07784977]
[1727311848536,3.89242,2569.1,2568.6,3.97097932]
[1727311849422,0.0599771,2569.2,2568.7,4.54610585]
[1727311849763,0.0599771,2569.2,2569.1,0.7789]
[1727311849947,0.0599771,2569.2,2569.1,4.74913574]
[1727311850221,0.0599771,2569.2,2569.1,4.74914225]
[1727311850381,0.0599771,2569.2,2569.1,6.06791106]
[1727311851208,0.0599771,2570.4,2569.9,0.7789]
[1727311851582,3.89069,2570.3,2570.0,0.08314341]
[1727311851816,0.0599771,2570.4,2570.0,0.08314341]
[1727311852122,3.9504571,2570.4,2570.0,0.08314341]
[1727311852481,3.8907,2570.3,2570.0,0.08314341]
[1727311852885,3.8907,2570.3,2569.7,3.89144]
[1727311853187,3.8907,2570.3,2569.8,0.08148431]
[1727311853387,3.89078,2570.2,2569.8,0.08148431]
[1727311853729,3.89122,2569.9,2569.3,0.8194]
[1727311853941,0.7757,2570.2,2569.3,1.64049588]
[1727311853942,1.17077571,2570.2,2569.3,1.64049588]
[1727311854224,3.89114,2570.0,2569.3,4.71149]
[1727311854427,3.89114,2570.0,2569.3,0.8194]
[1727311854588,3.89138,2569.8,2569.3,0.8194]
[1727311855107,3.89114,2570.0,2569.3,0.8194]
[1727311855310,3.89114,2570.0,2569.5,3.8918]
[1727311856748,4.66651,2570.2,2569.3,9.25748585]
[1727311856959,3.89081,2570.2,2569.5,3.89169]
[1727311857113,3.89081,2570.2,2569.6,0.07781999]
[1727311857114,7.78168,2570.2,2569.6,0.07781999]
[1727311857317,0.0599771,2570.4,2569.7,0.785]
[1727311857516,0.0599771,2570.4,2570.1,3.8908]
[1727311857842,0.0599771,2570.4,2570.2,0.07780132]
[1727311858160,0.0599771,2570.4,2570.2,0.86280132]
[1727311858326,0.0599771,2570.4,2570.2,4.67564]
[1727311859152,0.0599771,2570.4,2570.3,3.96838519]
[1727311859374,0.0599771,2570.4,2570.3,4.83278771]
[1727311859511,0.0599771,2570.4,2570.3,0.94219771]
[1727311859715,0.0599771,2570.4,2570.2,0.785]
[1727311859919,3.89069,2570.3,2569.7,0.7909]
[1727311860114,0.0599771,2570.4,2569.7,0.7909]
[1727311860358,3.89129,2569.9,2569.3,0.7909]
[1727311860520,3.89129,2569.9,2569.4,0.468304]
[1727311860720,0.8234,2570.3,2569.3,0.7909]
[1727311861028,0.0599771,2570.4,2569.3,3.96982255]
[1727311861029,3.89121,2569.9,2569.3,3.96982255]
[1727311861366,0.8234,2570.1,2569.0,0.8227]
[1727311861551,3.89193,2569.5,2569.0,1.294252]
[1727311861756,3.89193,2569.5,2568.2,3.89373]
[1727311861757,3.89235,2569.2,2568.7,0.8227]
[1727311862045,3.89261,2569.0,2568.4,3.89344]
[1727311862423,3.89233,2569.2,2568.5,0.07785074]
[1727311862627,3.89233,2569.2,2568.5,0.56503489]
[1727311862628,3.89243,2569.1,2568.5,0.56503489]
[1727311863073,3.89366,2568.3,2567.6,8.61191]
[1727311863225,0.8234,2568.7,2567.8,3.89436]
[1727311863226,3.89343,2568.5,2567.8,3.89436]
[1727311863419,0.8234,2568.7,2567.9,0.389436]
[1727311863652,3.89366,2568.3,2567.6,4.79514432]
[1727311863990,3.8939,2568.2,2567.6,0.8227]
[1727311864202,0.8234,2568.7,2567.6,0.8227]
[1727311864203,3.89375,2568.3,2567.7,0.07787501]
[1727311864500,3.89378,2568.2,2567.6,4.71728]
[1727311864699,3.89399,2568.1,2567.6,0.8227]
[1727311865716,3.89375,2568.3,2567.6,0.8227]
[1727311865995,3.89338,2568.5,2567.8,3.89428]
[1727311866292,3.89338,2568.5,2567.9,4.36151867]
[1727311866493,4.71642,2568.7,2568.0,3.89406]
[1727311866655,3.89336,2568.5,2568.0,0.08255846]
[1727311866851,3.89275,2568.9,2568.2,3.89367]
[1727311867089,3.89312,2568.7,2568.2,0.83065892]